Cogmind - Beta 13 @@@ ROGUE MODE // 2024.04.20 @ 17:24:48 Player: Modulottie Result: Self-destructed Performance ------------- Evolutions (1) 500 Regions Visited (4) 800 Robots Destroyed (40) 200 Value Destroyed (983) 983 Prototype IDs (1) 20 Alien Tech Used (0) 0 Bonus (0) 0 TOTAL SCORE: 2503 Bonus ------- None Cogmind --------- Core Integrity 168/400 Matter 276/300 Energy 280/280 System Corruption 8% Temperature Warm (140) Movement Walking (470) Ox5 Location -9/Mines Parts ------- > --- POWER (1) -------- Cooled Ion Engine > --- PROPULSION (3) --- Aluminum Leg > --- UTILITY (3) ------ Small Storage Unit High-capacity Storage Unit > --- WEAPON (2) ------- (None) > --- INVENTORY (20) --- Cooled Ion Engine Light Nuclear Core Aluminum Leg Flight Unit Flight Unit Flight Unit Flight Unit Flight Unit Flight Unit Signal Interpreter Light Assault Rifle Light Assault Rifle Mace Peak State ------------ > --- POWER ------------ Cooled Ion Engine > --- PROPULSION ------- Improved Aluminum Leg Improved Aluminum Leg Improved Aluminum Leg > --- UTILITY ---------- High-capacity Storage Unit Targeting Computer Medium Armor Plating > --- WEAPON ----------- Medium Laser Bore Cannon > --- INVENTORY -------- Cooled Ion Engine Cooled Ion Engine Cooled Ion Engine Light Nuclear Core Aluminum Leg Aluminum Leg Aluminum Leg Flight Unit Flight Unit Flight Unit Flight Unit Flight Unit Flight Unit Small Storage Unit Signal Interpreter Light Assault Rifle Light Assault Rifle Grenade Launcher Hammer [Rating: 21] Favorites ----------- Power Cooled Ion Engine Engine Cooled Ion Engine Propulsion Aluminum Leg Leg Aluminum Leg Wheel Wheel Utility High-capacity Storage Unit Storage High-capacity Storage Unit Processor Targeting Computer Protection Light Armor Plating Weapon Light Assault Rifle Energy Gun Medium Laser Ballistic Gun Light Assault Rifle Ballistic Cannon Bore Cannon Launcher Grenade Launcher Build | -11 -10 -10 -9 -9 ------- Run | Yrd Mat Min Mat Min Slots Evolved 2 | . . . 2 . Power . | . . . . . Propulsion 1 | . . . 1 . Utility 1 | . . . 1 . Weapon . | . . . . . Parts Attached 52 | 8 10 5 20 9 Power 5 | 2 1 . 1 1 Engine 5 | 2 1 . 1 1 Core . | . . . . . Reactor . | . . . . . Propulsion 13 | 2 3 2 4 2 Treads . | . . . . . Leg 11 | 2 1 2 4 2 Wheel 2 | . 2 . . . Hover . | . . . . . Flight . | . . . . . Utility 8 | 1 4 . 2 1 Device . | . . . . . Storage 4 | 1 2 . . 1 Processor 1 | . 1 . . . Hackware . | . . . . . Protection 3 | . 1 . 2 . Artifact . | . . . . . Weapon 26 | 3 2 3 13 5 Energy Gun 3 | 1 1 . 1 . Energy Cannon . | . . . . . Ballistic Gun 12 | 2 1 2 6 1 Ballistic Cannon 8 | . . . 5 3 Launcher 3 | . . 1 1 1 Special Weapon . | . . . . . Impact Weapon . | . . . . . Slashing Weapon . | . . . . . Piercing Weapon . | . . . . . Special Melee Weapon . | . . . . . Unidentified Prototypes 1 | . 1 . . . Parts Lost 12 | . 2 . 1 9 Power 1 | . . . 1 . Propulsion 5 | . 1 . . 4 Utility 2 | . . . . 2 Weapon 4 | . 1 . . 3 Highest Loss Streak 6 | . 1 . 1 6 To Critical Strikes . | . . . . . Average Slot Usage (%) 97 | . 98 100 99 88 Engine 12 | . 14 14 11 10 Leg 24 | . 10 25 33 32 Wheel 4 | . 17 2 . . Storage 13 | . 14 14 11 11 Processor 12 | . 10 14 11 11 Protection 2 | . 1 . 10 1 Energy Gun 3 | . . . 9 11 Ballistic Gun 21 | . 27 26 10 9 Naked Turns . | . . . . . Heaviest Build 66 | 14 52 52 66 59 Greatest Support 39 | 20 26 20 39 39 Greatest Overweight (x) 5 | . 5 5 1 2 Average Overweight (x) 2 | . 2 4 1 1 Largest Inventory Capacity 20 | 8 20 20 20 20 Average Capacity 19 | 7 18 20 20 20 Most Carried 20 | 6 20 20 20 18 Average Carried 16 | 3 14 18 18 15 Final Capacity 20 | 8 20 20 20 20 Final Carried 20 | 6 20 18 18 13 Class Distribution -------------------- 100% | Mutant Dominant Class ---------------- Mutant | -10/Materials Mutant | -10/Mines Mutant | -9/Materials Mutant | -9/Mines Resources | -11 -10 -10 -9 -9 ----------- Run | Yrd Mat Min Mat Min Matter Collected 1048 | 212 267 111 359 99 Remotely . | . . . . . Salvage Created 1198 | . 303 214 396 285 Parts 87 | . 21 26 29 11 Haulers Intercepted . | . . . . . Recyclers Shooed 1 | . . 1 . . Parts Field Recycled . | . . . . . Retrieved Matter . | . . . . . Parts Self-Destructed . | . . . . . Prevented . | . . . . . Kills | -11 -10 -10 -9 -9 ------- Run | Yrd Mat Min Mat Min Combat Hostiles Destroyed 43 | . 8 11 12 12 Guns 23 | . 8 7 4 4 Cannons 9 | . . . 5 4 AOE 11 | . . 4 3 4 Classes Destroyed 8 | . 3 1 2 2 Worker 1 | . 1 . . . Tunneler 1 | . . 1 . . Recycler 1 | . . . 1 . Swarmer 17 | . 2 9 6 . Grunt 15 | . 6 2 2 5 Duelist 1 | . . . . 1 Sentry 4 | . . . 4 . Assembled 6 | . . . . 6 Best Kill Streak 6 | . 4 4 4 6 Combat Bots Only 6 | . 3 3 4 6 Max Kills in Single Turn 4 | . 2 3 3 4 Gunslinging 1 | . . 1 . . Exploded 4 | . . 2 2 4 Melee . | . . . . . Uniques/NPCs Destroyed . | . . . . . Combat | -11 -10 -10 -9 -9 -------- Run | Yrd Mat Min Mat Min Hostile Shots Fired 223 | . 60 30 59 74 Missed 70 | . 20 7 23 20 Damage Taken 2132 | . 445 231 444 1012 Core 361 | . 53 76 30 202 Absorbed by Shields . | . . . . . Redirected to Shielding 6 | . 6 . . . Core Remaining (%) 74 | 100 . 48 . . Volleys Fired 86 | . 28 10 27 21 Largest 2 | . 2 2 2 2 Hottest 107 | . 60 50 107 107 Shots Fired 166 | . 56 20 48 42 Gun 138 | . 56 18 31 33 Cannon 24 | . . . 16 8 Launcher 4 | . . 2 1 1 Special . | . . . . . Kinetic 116 | . 52 18 26 20 Thermal 46 | . 4 . 21 21 Explosive 4 | . . 2 1 1 Electromagnetic . | . . . . . Robot Hit Streak 13 | . 13 9 10 8 Robot Miss Streak 6 | . 3 2 2 6 Penetration Max 2 | . . . 1 2 Secondary Targets 2 | . . 1 1 . Max Gunslinging Chain 1 | . . 1 1 . Shots Hit Robots 98 | . 40 13 21 24 Core Hits 72 | . 16 15 15 26 Critical Kills 7 | . . . 5 2 Critical Parts Destroyed 3 | . . . . 3 Critical Strikes 11 | . . . 6 5 Burn 1 | . . . 1 . Destroy 10 | . . . 5 5 Melee Attacks . | . . . . . Impact . | . . . . . Slashing . | . . . . . Piercing . | . . . . . Sneak Attacks . | . . . . . Combat Hostiles . | . . . . . Follow-up Attacks . | . . . . . Damage Inflicted 2190 | . 507 413 542 728 Guns 1126 | . 507 133 231 255 Cannons 371 | . . . 158 213 Explosions 682 | . . 269 153 260 Melee . | . . . . . Ramming 11 | . . 11 . . Kinetic 1115 | . 475 133 203 304 Thermal 382 | . 32 . 186 164 Explosive 682 | . . 269 153 260 Electromagnetic . | . . . . . Impact . | . . . . . Slashing . | . . . . . Piercing . | . . . . . Highest Corruption 8 | . . . . 8 Average Corruption 6 | . . . . 6 Corruption Purged . | . . . . . Corruption Blocked . | . . . . . Overload Shots . | . . . . . Overflow Damage 50 | . . 8 27 15 Projectiles 12 | . . . . 12 Explosions 38 | . . 8 27 3 Melee . | . . . . . Knockbacks 1 | . . . . 1 Impact . | . . . . . Kinetic 1 | . . . . 1 Secondary . | . . . . . Self-Inflicted Damage 107 | . . . 67 40 Shots 2 | . . . 1 1 Rammed . | . . . . . Targets Rammed 3 | . . 3 . . Kicked 3 | . . 3 . . Crushed . | . . . . . Highest Temperature 270 | . 18 13 270 189 Average Temperature 64 | . 8 5 65 80 Received Heat Transfer 611 | . 222 51 111 227 Siege Activations . | . . . . . Robots Corrupted . | . . . . . Combat Hostiles . | . . . . . Parts Fried . | . . . . . Impact Corruptions . | . . . . . Robots Melted . | . . . . . Combat Hostiles . | . . . . . Parts Melted 2 | . . . 2 . Heat Transferred 1185 | . 75 . 629 481 Parts Sabotaged . | . . . . . Parts Stolen . | . . . . . Parts Stripped . | . . . . . Power Chain Reactions . | . . . . . Alert | -11 -10 -10 -9 -9 ------- Run | Yrd Mat Min Mat Min Peak Influence 326 | . 223 170 326 263 Initial 120 | . . 45 66 120 Average 133 | . 116 84 210 213 Maximum Alert Level 1 | . 1 . 1 1 Low Security (%) 76 | 100 95 100 41 25 Level 1 23 | . 4 . 58 74 Level 2 . | . . . . . Level 3 . | . . . . . Level 4 . | . . . . . Level 5 . | . . . . . High Security . | . . . . . Max Security . | . . . . . Squads Dispatched 2 | . 1 . 1 . Investigation 1 | . . . 1 . Extermination . | . . . . . Reinforcement 1 | . 1 . . . Assault . | . . . . . Garrison . | . . . . . Intercept . | . . . . . Searches Triggered . | . . . . . Construction Impeded . | . . . . . Haulers Reinforced . | . . . . . Active Scanning Responses . | . . . . . Cargo Convoy Interrupts . | . . . . . Stealth | -11 -10 -10 -9 -9 --------- Run | Yrd Mat Min Mat Min Distress Signals 4 | . 2 . 2 . Communications Jammed . | . . . . . Distress Signals . | . . . . . Times Spotted 75 | . 17 11 20 27 Peak Tracking Total 19 | . 6 3 5 19 Tactical Retreats 5 | . 3 . 1 1 Traps | -11 -10 -10 -9 -9 ------- Run | Yrd Mat Min Mat Min Traps Triggered 1 | . . . 1 . Indirectly . | . . . . . Trap Hack Attempts . | . . . . . Triggered . | . . . . . Disarmed . | . . . . . Reprogrammed . | . . . . . Reused . | . . . . . Traps Extracted . | . . . . . Installed . | . . . . . Triggered . | . . . . . Machines | -11 -10 -10 -9 -9 ---------- Run | Yrd Mat Min Mat Min Machines Disabled 1 | . . . 1 . Max in Single Turn 1 | . . . 1 . Machines Repaired . | . . . . . Machines Dismantled . | . . . . . Machines Sabotaged . | . . . . . Overloaded Fab Kills . | . . . . . Hacking | -11 -10 -10 -9 -9 --------- Run | Yrd Mat Min Mat Min Machines Accessed 3 | . 2 . 1 . Terminals 3 | . 2 . 1 . Fabricators . | . . . . . Repair Stations . | . . . . . Recycling Units . | . . . . . Scanalyzers . | . . . . . Garrison Access . | . . . . . Total Hacks 7 | . 4 . 3 . Successful 3 | . 2 . 1 . Failed 4 | . 2 . 2 . Catastrophic 1 | . 1 . . . Database Lockouts . | . . . . . Manual 7 | . 4 . 3 . Terminals 7 | . 4 . 3 . Fabricators . | . . . . . Repair Stations . | . . . . . Recycling Units . | . . . . . Scanalyzers . | . . . . . Garrison Access . | . . . . . Terminal Hacks 1 | . 1 . . . Branch Access Points 1 | . 1 . . . Fabricator Hacks . | . . . . . Repair Station Hacks . | . . . . . Recycling Unit Hacks . | . . . . . Scanalyzer . | . . . . . Garrison Access Hacks . | . . . . . Unauthorized Hacks 2 | . 1 . 1 . Terminals 2 | . 1 . 1 . Botnet 2 | . 1 . 1 . Fabricators . | . . . . . Repair Stations . | . . . . . Recycling Units . | . . . . . Scanalyzers . | . . . . . Garrison Access . | . . . . . Data Cores Recovered . | . . . . . Used . | . . . . . Hacking Detections 1 | . 1 . . . Full Trace Events 1 | . 1 . . . Feedback Events . | . . . . . Feedback Blocked . | . . . . . Robot Schematics Acquired . | . . . . . Robots Built . | . . . . . Authchips . | . . . . . Time . | . . . . . Total Robot Build Rating . | . . . . . Part Schematics Acquired . | . . . . . Parts Built . | . . . . . Authchips . | . . . . . Time . | . . . . . Total Part Build Rating . | . . . . . Parts Repaired . | . . . . . Time . | . . . . . Parts Recycled . | . . . . . Recycled Matter . | . . . . . Retrieved Matter . | . . . . . Retrieved Components . | . . . . . Parts Scanalyzed . | . . . . . Part Schematics Acquired . | . . . . . Parts Damaged . | . . . . . Bothacking | -11 -10 -10 -9 -9 ------------ Run | Yrd Mat Min Mat Min Used RIF Installer . | . . . . . Robots Hacked . | . . . . . Non-combat . | . . . . . Combat . | . . . . . Robot Hacks Applied . | . . . . . Relay Couplers Released . | . . . . . Fabnet Peak Effective % . | . . . . . Robots Rewired . | . . . . . Allies Hacked . | . . . . . Hacks Repelled . | . . . . . Allies | -11 -10 -10 -9 -9 -------- Run | Yrd Mat Min Mat Min Total Allies 1 | . . 1 . . Largest Group 1 | . . 1 . . Highest-Rated Group 31 | . . 31 . . Highest-Rated Ally 31 | . . 31 . . Total Orders . | . . . . . Ally Attacks . | . . . . . Total Damage . | . . . . . Kills . | . . . . . Allies Corrupted . | . . . . . Allies Melted . | . . . . . Intel | -11 -10 -10 -9 -9 ------- Run | Yrd Mat Min Mat Min Robot Analysis Total . | . . . . . Derelict Logs Recovered . | . . . . . Drone Launches . | . . . . . Drone Recoveries . | . . . . . Exploration | -11 -10 -10 -9 -9 ------------- Run | Yrd Mat Min Mat Min Turns Passed 2748 | 67 601 1134 478 468 Spaces Moved 1129 | 48 363 329 188 201 Core 11 | 11 . . . . Treads . | . . . . . Legs 709 | 37 45 238 188 201 Wheels 409 | . 318 91 . . Hover . | . . . . . Flight . | . . . . . Fastest Speed 50 | 50 105 155 190 190 Average Speed 204 | 103 128 320 190 190 Slowest Speed 470 | 120 155 470 190 260 Overloaded Moves . | . . . . . Propulsion Burnouts . | . . . . . Robots Hopped . | . . . . . Cave-ins Triggered . | . . . . . Exploration Rate (%) 47 | 5 68 78 27 58 Regions Visited 4 Branch Regions 2 Pre-discovered Areas 1 | . . . . 1 Known Exits Taken 1 | . 1 . . . Unknown Exits Taken 3 | 1 . 1 1 . Scrap Searched 3 | . . 1 . 2 Spaces Dug . | . . . . . Terrain Destroyed 80 | . . 21 42 17 Melee . | . . . . . Projectile 12 | . . . 7 5 AOE 68 | . . 21 35 12 Terrain Rammed . | . . . . . Walls Destroyed . | . . . . . Machines Disabled . | . . . . . Actions | -11 -10 -10 -9 -9 --------- Run | Yrd Mat Min Mat Min Total 1385 | 61 440 383 256 245 Wait 73 | . 23 19 19 12 Move 1125 | 47 362 328 187 201 Hop . | . . . . . Pick Up 28 | 6 13 8 . 1 Fast Attach 14 | 6 6 . 1 1 Attach 9 | . 1 . 3 5 Detach 2 | . 1 . 1 . Swap 29 | 2 3 5 16 3 Drop 16 | . 3 10 2 1 Fire 86 | . 28 10 27 21 Melee . | . . . . . Ram . | . . . . . Kick 3 | . . 3 . . Crush . | . . . . . Escape Stasis . | . . . . . Rewire . | . . . . . Trap . | . . . . . Miscellaneous . | . . . . . Route ------- -11/Scrapyard -10/Materials (discovered 3 exits: *Mat x2 / *Min) -10/Mines -9/Materials -9/Mines (discovered 1 exit: [*Mat]) History --------- Turn | Location | Event 14 | -11/Scrapyard | Discovered new exit (range 16) 68 | -11/Scrapyard | Entered Materials 234 | -10/Materials | Discovered new exit (range 10) 308 | -10/Materials | Build established: Mutant 331 | -10/Materials | Identified exit to Mines 434 | -10/Materials | Discovered new exit (range 15) 669 | -10/Materials | Entered Mines 759 | -10/Mines | A weapon hastily lodged in a ceiling crevice suddenly fell to the ground 1330 | -10/Mines | Received a Mining Laser from a helpful Derelict 1607 | -10/Mines | Core integrity fell below 50% 1785 | -10/Mines | Discovered new exit (range 8) 1803 | -10/Mines | Entered Materials 1803 | -9/Materials | Evolved 2 slots: Propulsion x1, Utility x1 2252 | -9/Materials | Discovered new exit (range 16) 2281 | -9/Materials | Entered Mines 2290 | -9/Mines | Met a Derelict bent on vengeance 2378 | -9/Mines | Discovered new exit (range 14) 2397 | -9/Mines | Lost 3 parts (2n1u) 2619 | -9/Mines | Found a hidden stash of uninstalled traps 2665 | -9/Mines | Learned location of Storage (-9) 2724 | -9/Mines | Assembled infested the area 2743 | -9/Mines | Core integrity fell below 50% 2749 | -9/Mines | Self-destructed Last Messages --------------- 02736_ Grenade Launcher destroyed. 02738_ Knocked back. 02739_ as-00623 suffers critical hit (Destroy). 02740_ Targeting Computer destroyed. 02740_ System corrupted by crushing effect (+5). 02740_ as-64708 destroyed. 02743_ Knocked back. 02743_ as-85668 suffers critical hit (Destroy). 02743_ as-85668 destroyed. 02744_ K-01 Serf collects debris. 02745_ K-01 Serf destroyed. 02745_ Aluminum Leg destroyed. 02745_ System corrupted by crushing effect (+3). 02746_ HV Slug penetrates as-77365. 02746_ as-14815 suffers critical hit (Destroy). 02746_ Destroyed Asb. F-torch. 02746_ as-14815 destroyed. 02746_ Med. Laser destroyed. 02747_ as-49451 destroyed. 02749_ Bore Cannon destroyed. Map ----- +----------------------------------------------------+ | ?????????????????????????????????????????? | | ?????????????????????????????????????????? | | ?????????????????????????????????????????? | | ?????????????????????????????????????????? | | ?????????????????????????????????????????? | | ?????????????????????????????????????????? | | ??????????????????? ????????????????????? | | ??????????????????? ????????????????????? | | ??????????????????? ???????????????????? | | ??????????????????? #???????????????????? | | ??????????????????? #???????????????????? | | ??????????????????? #???????????????????? | | ???????????????????* #???????????????????? | | ??????????????????#% #???????????????????? | | ??????????????????# #???????????????????? | | ??????????????????# #???????????????????? | | ??????????????????# #???????????????????? | | ??????????????????# ##??????????????????? | | ?????????????????##a #??????????????????? | | ????????????????? a #???????#??????????? | | ?????????????????# aa #?????# ##?????????? | | ????????????????## a% #????? ####??????? | | ???????????????## a% #????# # ?????? | | ???????????????# %% a #???? ????? | | ???????????????#aa% #???? ?????? | | ???????????????##@a ##???? ?????? | | ????????????????##% ##????# ???????? | | ????????????????##* ##?### #?????????? | | ????????????????# ### #??????????? | | ????????????????# #??????????? | | ????????????????# #???????????? | | ????????????????## ### #???????????? | | ?????????######??####?## #???????????? | | ???????### ##???????# #???????????? | | ??????## ##??????## ##???????????? | | ??????# #???????## ##??? ???#???? | | ??????# ########## #???# ?? #???? | | ???????# #??# ?? ?? | | ??????## ######### #?# ?? | | ?????## #######??# #?# ? | | ?????# ###&& #??# #?# | | ?????# #### & & #### ### #? | | ?????## ##?# & #?? | | ??????### #??# ##### ## #??? | | ????????## ##??## #???# ## ?? ##??? | | ?????????##?????# ##### ## ????????? | | ??????##????????## ## ## ????????? | | ?????## ##???????##### #### ## #????????? | | ?????# #???????????# #??# ## #????????? | | ?????# #???????????# #??# ## /#??####### | +----------------------------------------------------+ Best States ------------- Heat Dissipation 28 Energy Generation 14 Energy Capacity 280 Matter Stores 300 Matter Capacity 300 Sight Range 16 Terrain Scan Density 10 Armor Coverage 225 Weapon Shielding 33 Evasion (%) 50 Targeting Accuracy 5 Item Schematics ----------------- None Robot Schematics ------------------ None Fabricated ------------ Nothing Alien Tech Used ----------------- None Achievements -------------- None Challenges ------------ None Game ------ Seed ThermalHoverSuperbattery Manual? 0 Play Time 00:22:25 Cumulative 17.2 hours Start 2024.04.20 @ 16:55:18 End 2024.04.20 @ 17:24:48 Sessions 1 Manual Loads 0 Difficulty Rogue Special Mode None Game No. 19 Rogue 19 Adventurer 0 Explorer 0 Win Type - Total 0 Types 0/0/0/0/0/0/0/0/0 Lore% 16 Gallery% 23 Achievement% 20 Wizard Run 0 Options --------- Layout 1 ASCII 0 Keyboard 0 Movement Numpad Keybinds 0 Fullscreen 1 Font 24/Terminus Map View 50x35 Zoom Use 1% Tactical HUD 1 Map Filters NONE Filters NONE Steam 1 RUN: 1b220a82-f479-4d35-a55f-fd96120a0a6e